fUST/lending_fUST_20240821
["ID","MTS","AMOUNT","RATE_DAILY","PERIOD"]
[335385531,1724171461872,-236.09608456,0.00035,30]
[335385532,1724171464329,-2901.042199,0.00035,30]
[335385533,1724171464888,-500.0,0.00019978,2]
[335385534,1724171464900,-500.0,0.00019978,2]
[335385535,1724171464910,-236.46170231,0.00019978,2]
[335385536,1724171464921,-953.45396956,0.00024647,2]
[335385537,1724171464931,-176949.14239262,0.00035,30]
[335385538,1724171465728,-283.84618392,0.00035,30]
[335385539,1724171466131,-40.34830968,0.00035,30]
[335385540,1724171466142,-27915.41694077,0.00035,30]
[335385541,1724171469838,-585.32035933,0.00035,30]
[335385558,1724171714875,24900.0,7.397e-05,2]
[335385570,1724172359328,534.45169516,8.019e-05,2]
[335385573,1724172417869,236.31300836,8.019e-05,2]
[335385596,1724172553152,-1067.06028282,0.0001,2]
[335385597,1724172553179,-7820.15038,0.00012356,2]
[335385598,1724172553208,-500.0,0.00012999,2]
[335385599,1724172553239,-455.323553,0.00014247,2]
[335385600,1724172555672,154.57491897,0.00012934,2]
[335385601,1724172558134,-1708.2520232,0.00017785,2]
[335385603,1724172573169,-3000.0,0.00017,2]
[335385604,1724172573193,-13105.214078,0.00017785,2]
[335385605,1724172573216,-500.0,0.00018121,2]
[335385606,1724172573239,-500.0,0.00018123,2]
[335385607,1724172573264,-500.0,0.00018133,2]
[335385608,1724172573289,-500.0,0.000182,2]
[335385609,1724172573313,-500.0,0.00018229,2]
[335385610,1724172573339,-500.0,0.00018242,2]
[335385611,1724172573361,-500.0,0.00018245,2]
[335385612,1724172573383,-500.0,0.0001825,2]
[335385613,1724172573409,-174.7,0.00018268,2]
[335385614,1724172573432,-500.0,0.00018354,2]
[335385615,1724172573453,-500.0,0.00018398,2]
[335385616,1724172573475,-500.0,0.00018409,2]
[335385617,1724172573497,-500.0,0.00018499,2]
[335385618,1724172573518,-500.0,0.00018608,2]
[335385619,1724172573541,-500.0,0.00018668,2]
[335385620,1724172573564,-500.0,0.00018742,2]
[335385621,1724172573587,-500.0,0.00018818,2]
[335385622,1724172573610,-500.0,0.00018884,2]
[335385623,1724172573633,-500.0,0.00018892,2]
[335385624,1724172603140,288.3944192,0.00015677,2]
[335385642,1724172631924,-500.0,0.00018921,2]
[335385643,1724172631933,-500.0,0.00018954,2]
[335385644,1724172631943,-500.0,0.00019079,2]
[335385645,1724172631953,-500.0,0.00019091,2]
[335385646,1724172631963,-179.756497,0.00019178,2]
[335385647,1724172631972,-162.230414,0.00019178,2]
[335385648,1724172631982,-500.0,0.00019202,2]
[335385649,1724172631992,-500.0,0.00019212,2]
[335385650,1724172632001,-500.0,0.00019287,2]
[335385651,1724172632011,-500.0,0.00019371,2]
[335385652,1724172632020,-500.0,0.00019388,2]
[335385653,1724172632029,-500.0,0.00019404,2]
[335385654,1724172632038,-251.0,0.00019445,2]
[335385655,1724172632051,-500.0,0.00019473,2]
[335385656,1724172632060,-500.0,0.00019574,2]
[335385657,1724172632070,-500.0,0.00019593,2]
[335385658,1724172632079,-500.0,0.00019621,2]
[335385659,1724172632089,-500.0,0.00019637,2]
[335385660,1724172632099,-500.0,0.00019648,2]
[335385661,1724172632108,-500.0,0.00019674,2]
[335385663,1724172632119,-500.0,0.00019698,2]
[335385665,1724172632130,-174.7,0.00019789,2]
[335385667,1724172632139,-500.0,0.00019851,2]
[335385669,1724172632148,-500.0,0.0001999,2]
[335385671,1724172632158,-300.68179885,0.0002,2]
[335385673,1724172632168,-3000.0,0.0002,2]
[335385675,1724172632177,-500.0,0.00020064,2]
[335385676,1724172632187,-500.0,0.00020081,2]
[335385677,1724172632196,-500.0,0.0002012,2]
[335385678,1724172632205,-665.80480596,0.00020257,2]
[335385679,1724172632215,-500.0,0.00020346,2]
[335385680,1724172632224,-500.0,0.00020411,2]
[335385681,1724172632235,-500.0,0.00020427,2]
[335385682,1724172632244,-500.0,0.00020458,2]
[335385683,1724172632254,-500.0,0.00020495,2]
[335385684,1724172632266,-500.0,0.00020567,2]
[335385685,1724172632275,-500.0,0.00020627,2]
[335385686,1724172632285,-500.0,0.00020628,2]
[335385687,1724172632296,-500.0,0.00020651,2]
[335385688,1724172632306,-455.323553,0.00020707,2]
[335385689,1724172632315,-500.0,0.00020735,2]
[335385690,1724172632325,-500.0,0.0002075,2]
[335385691,1724172632334,-500.0,0.00020766,2]
[335385692,1724172632346,-863.1714911,0.00020817,2]
[335385693,1724172632356,-507.45012855,0.00020854,2]
[335385694,1724172632365,-23.91106688,0.00020943,2]
[335385695,1724172632396,-156.4030076,0.00020943,2]
[335385811,1724172639894,-503.33031317,0.00020943,2]
[335385812,1724172639903,-509.78698035,0.00020974,2]
[335385813,1724172639913,-150.0,0.00021,2]
[335385814,1724172639922,-174.7,0.0002131,2]
[335385815,1724172639932,-3557.99428053,0.00022,30]
[335385816,1724172639941,-3000.0,0.00022,2]
[335385818,1724172639951,-174.7,0.00022831,2]
[335385820,1724172639961,-174.7,0.00024352,2]
[335385821,1724172639971,-272.55337612,0.00024379,2]
[335385822,1724172639981,-9886.62429415,0.00024498,2]
[335385823,1724172640121,-117.27637161,0.00024498,2]
[335385824,1724172640130,-19852.08634763,0.00024571,2]
[335385825,1724172640140,-19852.08634763,0.00024577,2]
[335385827,1724172640149,-200.0,0.00024658,15]
[335385828,1724172640158,-380.0,0.00024658,2]
[335385830,1724172640168,-154.57491897,0.00024658,2]
[335385831,1724172640177,-250.2639758,0.00024658,2]
[335385832,1724172640186,-271.56079623,0.00024658,2]
[335385833,1724172640195,-1694.7430816,0.00024662,2]
[335385834,1724172640204,-435.0,0.00024662,2]
[335385835,1724172640214,-154.57491897,0.00024662,2]
[335385836,1724172640223,-782.65797788,0.00024688,2]
[335385837,1724172640232,-1111.07542891,0.0002469,2]
[335385838,1724172640242,-532.95903417,0.00024756,2]
[335385839,1724172640252,-154.57491897,0.00025,2]
[335385840,1724172640261,-2525.0,0.00025,2]
[335385841,1724172640274,-174.7,0.00025873,2]
[335385842,1724172640284,-21823.38609655,0.00026523,3]
[335385843,1724172640308,-1575.323142,0.00026523,3]
[335385844,1724172640322,-54956.88076145,0.00026523,3]
[335385845,1724172640333,-94026.71,0.00026533,3]
[335385846,1724172640346,-112832.05,0.00026543,3]
[335385847,1724172640357,-602.049,0.00026553,2]
[335385848,1724172640369,-150.074,0.00026553,2]
[335385849,1724172640378,-150.061,0.00026553,2]
[335385850,1724172640388,-7726.0,0.00026553,2]
[335385851,1724172640397,-150.446,0.00026553,2]
[335385852,1724172640406,-335.3,0.000266,31]
[335385853,1724172640415,-335.3,0.000266,31]
[335385854,1724172640425,-335.3,0.000266,31]
[335385855,1724172640435,-335.3,0.000266,31]
[335385856,1724172640445,-335.3,0.000266,31]
[335385857,1724172640455,-335.3,0.000266,31]
[335385858,1724172640465,-335.3,0.000266,31]
[335385859,1724172640475,-335.3,0.000266,31]
[335385860,1724172640484,-335.3,0.000266,31]
[335385861,1724172640493,-335.3,0.000266,31]
[335385862,1724172640503,-335.3,0.000266,31]
[335385863,1724172640513,-335.3,0.000266,31]
[335385864,1724172640522,-335.3,0.000267,31]
[335385865,1724172640533,-335.3,0.000267,31]
[335385866,1724172640542,-335.3,0.000267,31]
[335385867,1724172640551,-335.3,0.000267,31]
[335385868,1724172640560,-335.3,0.000267,31]
[335385869,1724172640569,-335.3,0.000267,31]
[335385870,1724172640578,-335.3,0.000267,31]
[335385871,1724172640588,-335.3,0.000267,31]
[335385872,1724172640597,-335.3,0.000267,31]
[335385873,1724172640606,-335.3,0.000267,31]
[335385874,1724172640615,-335.3,0.000267,31]
[335385875,1724172640632,-335.3,0.000267,31]
[335385876,1724172640641,-335.3,0.000267,31]
[335385877,1724172640650,-335.3,0.000267,31]
[335385878,1724172640660,-335.3,0.000267,31]
[335385879,1724172640669,-335.3,0.000267,31]
[335385880,1724172640680,-335.3,0.000267,31]
[335385881,1724172640689,-335.3,0.000267,31]
[335385882,1724172640698,-335.3,0.000267,31]
[335385883,1724172640708,-335.3,0.000267,31]
[335385884,1724172640717,-335.3,0.000267,31]
[335385885,1724172640726,-335.3,0.000267,31]
[335385886,1724172640735,-335.3,0.000267,31]
[335385887,1724172640744,-335.3,0.000267,31]
[335385888,1724172640754,-345.81188453,0.00026799,2]
[335385889,1724172640763,-500.0,0.00026799,2]
[335385890,1724172640776,-290.49204064,0.00026799,2]
[335385891,1724172640785,-500.0,0.00026799,2]
[335385892,1724172640794,-500.0,0.00026799,2]
[335385893,1724172640803,-335.3,0.000268,31]
[335385894,1724172640812,-335.3,0.000268,31]
[335385895,1724172640822,-335.3,0.000268,31]
[335385896,1724172640833,-335.3,0.000268,31]
[335385897,1724172640842,-335.3,0.000268,31]
[335385898,1724172640851,-335.3,0.000268,31]
[335385899,1724172640861,-335.3,0.000268,31]
[335385900,1724172640871,-335.3,0.000268,31]
[335385901,1724172640881,-335.3,0.000268,31]
[335385902,1724172640890,-335.3,0.000268,31]
[335385903,1724172640900,-335.3,0.000268,31]
[335385904,1724172640910,-335.3,0.000268,31]
[335385905,1724172640919,-335.3,0.000268,31]
[335385906,1724172640930,-335.3,0.000268,31]
[335385907,1724172640941,-335.3,0.000268,31]
[335385908,1724172640951,-335.3,0.000268,31]
[335385909,1724172640963,-335.3,0.000268,31]
[335385910,1724172640973,-335.3,0.000268,31]
[335385911,1724172640983,-335.3,0.000268,31]
[335385912,1724172640992,-335.3,0.000268,31]
[335385913,1724172641002,-335.3,0.000268,31]
[335385914,1724172641011,-335.3,0.000268,31]
[335385915,1724172641021,-335.3,0.000268,31]
[335385916,1724172641031,-335.3,0.000268,31]
[335385917,1724172641040,-335.3,0.000269,31]
[335385918,1724172641049,-335.3,0.000269,31]
[335385919,1724172641059,-335.3,0.000269,31]
[335385920,1724172641069,-335.3,0.000269,31]
[335385921,1724172641078,-335.3,0.000269,31]
[335385922,1724172641089,-335.3,0.000269,31]
[335385923,1724172641100,-335.3,0.000269,31]
[335385924,1724172641111,-335.3,0.000269,31]
[335385925,1724172641126,-335.3,0.000269,31]
[335385926,1724172641137,-335.3,0.000269,31]
[335385927,1724172641149,-335.3,0.000269,31]
[335385928,1724172641160,-335.3,0.000269,31]
[335385929,1724172641170,-335.3,0.000269,31]
[335385930,1724172641179,-335.3,0.000269,31]
[335385931,1724172641189,-335.3,0.000269,31]
[335385932,1724172641199,-335.3,0.000269,31]
[335385933,1724172641209,-335.3,0.000269,31]
[335385934,1724172641220,-335.3,0.000269,31]
[335385935,1724172641229,-335.3,0.000269,31]
[335385936,1724172641240,-335.3,0.000269,31]
[335385937,1724172641250,-335.3,0.000269,31]
[335385938,1724172641262,-335.3,0.000269,31]
[335385939,1724172641275,-335.3,0.000269,31]
[335385940,1724172641285,-335.3,0.000269,31]
[335385941,1724172641295,-335.3,0.00027,31]
[335385942,1724172641304,-335.3,0.00027,31]
[335385943,1724172641313,-335.3,0.00027,31]
[335385944,1724172641323,-335.3,0.00027,31]
[335385945,1724172641331,-335.3,0.00027,31]
[335385946,1724172641341,-335.3,0.00027,31]
[335385947,1724172641352,-335.3,0.00027,31]
[335385948,1724172641361,-335.3,0.00027,31]
[335385949,1724172641371,-335.3,0.00027,31]
[335385950,1724172641380,-335.3,0.00027,31]
[335385951,1724172641390,-335.3,0.00027,31]
[335385952,1724172641399,-335.3,0.00027,31]
[335385953,1724172641410,-335.3,0.00027,31]
[335385954,1724172641419,-335.3,0.00027,31]
[335385955,1724172641428,-335.3,0.00027,31]
[335385956,1724172641438,-335.3,0.00027,31]
[335385957,1724172641447,-455.323553,0.00027167,2]
[335385958,1724172641457,-174.7,0.00027394,2]
[335385959,1724172641466,-224.399999,0.00028,2]
[335385960,1724172641475,-2191.84436898,0.00028,2]
[335385961,1724172641485,-174.7,0.00028915,2]
[335385962,1724172641495,-300.0,0.00029,2]
[335385963,1724172641505,-2191.0,0.00029,2]
[335385964,1724172641514,-7726.0,0.00029553,2]
[335385965,1724172641523,-178.69269968,0.0003,5]
[335385966,1724172641532,-300.0,0.0003,2]
[335385967,1724172641541,-213.16947616,0.0003,30]
[335385968,1724172641550,-261.0,0.0003,2]
[335385969,1724172641560,-174.7,0.00030436,2]
[335385970,1724172641569,-300.0,0.00031,4]
[335385971,1724172641578,-155.12080504,0.00031374,2]
[335385972,1724172641587,-174.7,0.00031957,3]
[335385973,1724172641597,-300.0,0.00032,5]
[335385974,1724172641606,-7726.0,0.00032553,2]
[335385975,1724172641615,-300.0,0.00033,7]
[335385976,1724172641628,-34419.4,0.00033,14]
[335385977,1724172641637,-261.0,0.00033,2]
[335385978,1724172641645,-174.7,0.00033478,4]
[335385979,1724172641654,-455.323553,0.00033626,2]
[335385980,1724172641663,-300.0,0.00034,9]
[335385981,1724172641672,-18360.00172955,0.00034,30]
[335385982,1724172641682,-1680.27220315,0.00034,120]
[335385983,1724172641691,-12020.921836,0.00034,30]
[335385984,1724172641700,-238.650031,0.00034247,2]
[335385985,1724172641709,-5060.28,0.0003452,21]
[335385986,1724172641720,-5060.28,0.0003452,21]
[335385987,1724172641730,-5060.28,0.0003452,21]
[335385988,1724172641741,-5060.28,0.0003452,21]
[335385989,1724172641752,-5060.28,0.0003452,21]
[335385990,1724172641763,-5060.28,0.0003452,21]
[335385991,1724172641772,-5060.28,0.0003452,21]
[335385992,1724172641781,-5060.28,0.0003452,21]
[335385993,1724172641790,-5060.28,0.0003452,21]
[335385994,1724172641800,-5060.28,0.0003452,21]
[335385995,1724172641809,-5060.28,0.0003452,21]
[335385996,1724172641818,-5060.28,0.0003452,21]
[335385997,1724172641827,-5060.28,0.0003452,21]
[335385998,1724172641838,-5060.28,0.0003452,21]
[335385999,1724172641849,-5060.28,0.0003452,21]
[335386000,1724172641859,-5060.28,0.0003452,21]
[335386001,1724172641871,-5060.28,0.0003452,21]
[335386002,1724172641880,-5060.28,0.0003452,21]
[335386003,1724172641889,-5117.28593988,0.00034522,2]
[335386004,1724172641899,-1631.08152818,0.000347,12]
[335386005,1724172641910,-1631.08152817,0.000347,12]
[335386006,1724172641920,-1631.08152817,0.000347,12]
[335386007,1724172641930,-1631.08152817,0.000347,12]
[335386008,1724172641943,-5060.28,0.00034792,21]
[335386009,1724172641952,-501.10654671,0.00034794,21]
[335386010,1724172641964,-1000.0,0.000348,3]
[335386011,1724172641974,-3237.04,0.000348,14]
[335386012,1724172641983,-503.64031214,0.00034825,2]
[335386013,1724172641993,-150.112235,0.000349,7]
[335386014,1724172642002,-182.5,0.000349,9]
[335386015,1724172642013,-172.84268473,0.0003493,2]
[335386016,1724172642023,-5060.28,0.0003493,21]
[335386017,1724172642033,-5060.28,0.0003493,21]
[335386018,1724172642043,-5060.28,0.0003493,21]
[335386019,1724172642053,-5060.28,0.0003493,21]
[335386020,1724172642062,-5060.47455302,0.0003493,21]
[335386021,1724172642071,-83581.8683296,0.00034931,5]
[335386024,1724172642997,-953.45396956,0.00024651,2]
[335386025,1724172643006,-308.70225098,0.00024803,2]
[335386026,1724172643015,-11656.54895118,0.00034931,5]
[335386027,1724172643024,-500.0,0.00034931,21]
[335386028,1724172643034,-500.0,0.00034931,21]
[335386029,1724172643043,-500.0,0.00034931,21]
[335386030,1724172643052,-500.0,0.00034931,21]
[335386031,1724172643062,-500.0,0.00034931,21]
[335386032,1724172643072,-305.249749,0.00034931,21]
[335386033,1724172643081,-500.0,0.00034931,2]
[335386034,1724172643091,-500.0,0.00034931,21]
[335386035,1724172643100,-500.0,0.00034931,21]
[335386037,1724172643110,-500.0,0.00034931,21]
[335386039,1724172643122,-500.0,0.00034931,21]
[335386041,1724172643135,-500.0,0.00034931,21]
[335386043,1724172643146,-500.0,0.00034931,21]
[335386044,1724172643156,-500.0,0.00034931,21]
[335386045,1724172643166,-500.0,0.00034931,21]
[335386046,1724172643176,-500.0,0.00034931,21]
[335386047,1724172643185,-500.0,0.00034931,21]
[335386048,1724172643195,-298.01769894,0.00034931,21]
[335386049,1724172643204,-500.0,0.00034931,21]
[335386050,1724172643214,-203.93556017,0.00034931,21]
[335386051,1724172643223,-500.0,0.00034931,21]
[335386052,1724172643231,-500.0,0.00034931,21]
[335386053,1724172643240,-147.9333577,0.00034931,21]
[335386208,1724172688632,170.02363471,0.00015677,2]
[335386239,1724173630139,-2072.21643193,0.00012898,3]
[335386253,1724173747123,-154.57491897,0.00013971,2]
[335386254,1724173747145,-933.89722372,0.00014245,2]
[335386255,1724173747166,-398.980635,0.00014247,2]
[335386256,1724173747186,-746.4764462,0.00014519,3]
[335386257,1724173748593,154.57491897,0.00013971,2]
[335386260,1724173756126,-500.0,0.00016438,2]
[335386261,1724173756149,-1000.0,0.00016986,2]
[335386262,1724173756171,-1500.0,0.00017884,2]
[335386263,1724173756193,-1111.07542891,0.00018016,2]
[335386264,1724173756214,-277.6716568,0.00018081,2]
[335386265,1724173756234,-500.0,0.00018144,2]
[335386266,1724173756255,-500.0,0.00018184,2]
[335386267,1724173756276,-500.0,0.000183,2]
[335386268,1724173756297,-500.0,0.0001833,2]
[335386269,1724173756318,-500.0,0.00018834,2]
[335386270,1724173756338,-2000.0,0.00018989,2]
[335386271,1724173756360,-823.16820639,0.00019034,2]
[335386272,1724173756381,-500.0,0.00019153,2]
[335386273,1724173756401,-500.0,0.00019625,2]
[335386274,1724173756423,-500.0,0.00019777,2]
[335386275,1724173756446,-435.0,0.0002,2]
[335386276,1724173756470,-300.68179885,0.0002,2]
[335386277,1724173761783,277.6716568,0.00018016,2]
[335386278,1724173770675,1111.07542891,0.00017999,2]
[335386283,1724173782579,500.0,0.00016438,2]
[335386284,1724173782755,841.72232796,0.00017884,2]
[335386285,1724173782777,658.27767204,0.00017884,2]
[335386286,1724173782831,1000.0,0.00016986,2]
[335386331,1724173838390,-2000.0,0.00018989,2]
[335386333,1724173838400,-251.0,0.00020236,2]
[335386335,1724173838409,-2500.0,0.00020254,2]
[335386337,1724173838419,-500.0,0.00020301,2]
[335386340,1724173838429,-600.0,0.00020579,2]
[335386342,1724173838441,-154.76012181,0.00020589,2]
[335386345,1724173838451,-654.70965722,0.00020676,2]
[335386348,1724173838460,-398.980635,0.00020707,2]
[335386351,1724173838470,-800.0,0.0002079,2]
[335386354,1724173838480,-500.0,0.00020862,2]
[335386356,1724173838490,-1037.69025555,0.0002109,120]
[335386358,1724173838499,-179.756497,0.00021428,2]
[335386376,1724173838636,-214.774923,0.00021589,2]
[335386378,1724173838674,-3000.0,0.00021654,2]
[335386380,1724173838684,-275.74225108,0.00021837,2]
[335386382,1724173838694,-10692.58165843,0.00021837,2]
[335386479,1724173840558,-10104.54709101,0.00021837,2]
[335386480,1724173840569,-277.6716568,0.00021837,2]
[335386481,1724173840579,-1111.07542891,0.00021837,2]
[335386482,1724173840588,-308.70225098,0.00022,2]
[335386483,1724173840598,-1694.7430816,0.0002217,2]
[335386484,1724173840607,-174.492611,0.00022225,2]
[335386485,1724173840616,-3500.0,0.0002317,2]
[335386486,1724173840626,-174.492611,0.00023336,2]
[335386487,1724173840636,-4113.09853377,0.00024193,2]
[335386488,1724173840649,-5890.80213199,0.00024193,2]
[335386489,1724173840658,-154.57491897,0.00024326,2]
[335386490,1724173840667,-154.57491897,0.00024366,2]
[335386491,1724173840678,-200.0,0.00024658,15]
[335386493,1724173840689,-380.0,0.00024658,2]
[335386495,1724173840698,-782.65797788,0.00024658,2]
[335386496,1724173840707,-782.65797788,0.00024662,2]
[335386498,1724173840717,-10342.93698711,0.00024728,2]
[335386500,1724173840727,-3263.66465021,0.00024792,2]
[335386502,1724173840736,-154.57491897,0.00025,2]
[335386504,1724173840746,-503.69054059,0.00025,2]
[335386506,1724173840755,-503.69054059,0.0002525,2]
[335386508,1724173840765,-503.69054059,0.000255,2]
[335386510,1724173840774,-506.30606975,0.0002575,2]
[335386512,1724173840784,-7726.0,0.00026471,2]
[335386513,1724173840794,-172.0,0.00027,2]
[335386514,1724173840803,-398.980635,0.00027167,2]
[335386515,1724173840813,-1460.81398373,0.00027757,2]
[335386516,1724173840822,-172.0,0.00028767,2]
[335386517,1724173840832,-214.774923,0.00028813,2]
[335386518,1724173840842,-151.0,0.0002893,2]
[335386519,1724173840851,-1460.81398373,0.00029186,2]
[335386520,1724173840861,-7726.0,0.00029471,2]
[335386521,1724173840871,-153.0,0.0002974,2]
[335386522,1724173840882,-153.0,0.0002974,2]
[335386523,1724173840892,-153.0,0.0002974,2]
[335386524,1724173840904,-213.16947616,0.0003,30]
[335386525,1724173840916,-178.69269968,0.0003,5]
[335386526,1724173840927,-4707.57048829,0.0003,7]
[335386527,1724173840939,-218.0,0.0003,2]
[335386528,1724173840951,-151.0,0.00030447,2]
[335386529,1724173840964,-54413.6,0.00030604,3]
[335386530,1724173840974,-1460.81398373,0.00030614,2]
[335386531,1724173840983,-155.12080505,0.00031374,2]
[335386532,1724173840995,-151.0,0.00031965,3]
[335386533,1724173841006,-1460.81398373,0.00032043,2]
[335386534,1724173841016,-7726.0,0.00032471,2]
[335386535,1724173841026,-300.0,0.00033,21]
[335386536,1724173841037,-218.0,0.00033,2]
[335386537,1724173841048,-218.0,0.00033,2]
[335386538,1724173841058,-1460.81398373,0.00033471,2]
[335386539,1724173841068,-151.0,0.00033482,4]
[335386540,1724173841077,-151.0,0.00033482,4]
[335386541,1724173841087,-398.980635,0.00033626,2]
[335386542,1724173841096,-150.0,0.0003392,2]
[335386543,1724173841105,-213.0,0.00034,9]
[335386544,1724173841115,-226.717529,0.00034247,2]
[335386545,1724173841124,-65296.33,0.0003444,3]
[335386546,1724173841133,-63687.21833628,0.0003445,4]
[335386547,1724173841146,-3163.899999,0.0003445,4]
[335386625,1724174312716,500.0,0.0001,2]
[335386644,1724174825121,-269.59713988,0.00010548,2]
[335386645,1724174830110,-30.40286012,0.00010548,2]
[335386646,1724174830139,-339.13354,0.00014247,2]
[335386647,1724174830168,-1037.39427377,0.00016,2]
[335386648,1724174830191,-156.6552172,0.0002,2]
[335386649,1724174830212,-83.93089211,0.0002,2]
[335386650,1724174839095,-88.91179262,0.0002,2]
[335386651,1724174839117,-300.0,0.00020003,2]
[335386652,1724174839141,-2396.77463235,0.00020004,2]
[335386653,1724174852110,-1757.59420464,0.00020004,2]
[335386658,1724174954147,-300.0,0.00019976,2]
[335386659,1724174954169,-6242.44736737,0.00019977,2]
[335386660,1724174964139,-3747.90030957,0.00019977,2]
[335386661,1724174966109,-352.58931017,0.00019977,2]
[335386662,1724174966130,-216.41948193,0.0002,2]
[335386663,1724174966157,-156.6552172,0.0002,2]
[335386664,1724174966179,-154.57491897,0.0002,2]
[335386665,1724174966199,-435.0,0.0002,2]
[335386666,1724174966220,-1111.07542891,0.00020004,2]
[335386667,1724174966243,-1816.46256404,0.00020004,2]
[335386668,1724174966274,-1554.38075285,0.00020004,2]
[335386669,1724174974137,-984.97549436,0.00020004,2]
[335386670,1724174974159,-434.00975875,0.00020004,2]
[335386671,1724174974181,-2418.69879718,0.00020004,2]
[335386692,1724175032365,-300.0,0.00019973,2]
[335386693,1724175032375,-868.96958356,0.00019974,2]
[335386734,1724175038531,-156.6552172,0.0002,2]
[335386735,1724175038541,-8093.14738459,0.00020004,2]
[335386736,1724175038551,-992.09924077,0.00020004,2]
[335386737,1724175038561,-154.89311412,0.00020004,2]
[335386738,1724175038571,-126499.41497098,0.00020004,2]
[335386739,1724175038581,-154.79103211,0.00020004,2]
[335386740,1724175038591,-126499.41497098,0.00020004,2]
[335386742,1724175038600,-277.6716568,0.00020059,2]
[335386743,1724175038609,-339.13354,0.00020707,2]
[335386744,1724175038619,-230.21028568,0.00021029,120]
[335386745,1724175038629,-500.0,0.00021189,2]
[335386746,1724175038639,-252.28820585,0.00021441,2]
[335386747,1724175038649,-162.230414,0.00021733,2]
[335386748,1724175038659,-251.0,0.00021897,2]
[335386749,1724175038668,-252.0,0.0002197,2]
[335386750,1724175038679,-882.96114551,0.0002217,2]
[335386751,1724175038689,-171.493407,0.00022225,2]
[335386752,1724175038699,-174.492612,0.00022225,2]
[335386753,1724175038709,-500.0,0.00022249,2]
[335386754,1724175038719,-193.29743,0.00022509,2]
[335386755,1724175038729,-259.72472163,0.00024247,2]
[335386756,1724175038739,-154.57491897,0.00024247,2]
[335386757,1724175038750,-434.00975875,0.00024247,2]
[335386758,1724175038760,-832.67937002,0.00024247,2]
[335386759,1724175038770,-953.45396956,0.00024308,2]
[335386760,1724175038779,-178.28102427,0.00024366,2]
[335386761,1724175038789,-200.0,0.00024658,15]
[335386762,1724175038799,-160.83387276,0.0002469,2]
[335386763,1724175038809,-160.83387276,0.0002469,2]
[335386764,1724175038820,-782.65797788,0.0002469,2]
[335386765,1724175038831,-154.57491897,0.00025,2]
[335386766,1724175038842,-503.64031214,0.00025,2]
[335386767,1724175038852,-151.0,0.00025908,2]
[335386768,1724175038862,-339.13354,0.00027167,2]
[335386769,1724175038872,-151.0,0.00027423,2]
[335386770,1724175038884,-500.0,0.00027895,2]
[335386771,1724175038894,-242.06831917,0.00027895,2]
[335386772,1724175038904,-500.0,0.00027895,2]
[335386773,1724175038914,-500.0,0.00027895,2]
[335386774,1724175038923,-200.16228389,0.00027895,2]
[335386775,1724175038933,-500.0,0.00027895,2]
[335386776,1724175038943,-500.0,0.00027895,2]
[335386777,1724175038953,-500.0,0.00027895,2]
[335386778,1724175038963,-7726.0,0.00027896,2]
[335386779,1724175038973,-600.0,0.00028,2]
[335386780,1724175038983,-151.0,0.00028939,2]